fUST/lending_fUST_20240910
["ID","MTS","AMOUNT","RATE_DAILY","PERIOD"]
[337627023,1725900650229,-3746.848215,0.00035616,14]
[337627024,1725900650238,-3746.848215,0.00035616,14]
[337627025,1725900650247,-3746.848215,0.00035616,14]
[337627026,1725900650258,-500.0,0.00035616,14]
[337627027,1725900650268,-819.58,0.00035616,14]
[337627028,1725900650278,-2876.3,0.00035616,14]
[337627029,1725900650288,-500.0,0.00035616,14]
[337627030,1725900650297,-500.0,0.00035616,14]
[337627031,1725900650306,-1286.18,0.00035616,14]
[337627032,1725900650316,-10042.4,0.00035616,14]
[337627033,1725900650326,-500.0,0.00035616,14]
[337627034,1725900650335,-5104.29,0.00035616,14]
[337627035,1725900650345,-500.0,0.00035616,14]
[337627036,1725900650355,-225.21757265,0.00035616,14]
[337627037,1725900650365,-500.0,0.00035616,14]
[337627038,1725900650376,-1108.89,0.00035616,14]
[337627039,1725900650385,-1179.98,0.00035616,14]
[337627040,1725900650394,-287.47311274,0.00035616,14]
[337627041,1725900650404,-500.0,0.00035616,14]
[337627042,1725900650413,-551.17035896,0.00035616,14]
[337627043,1725900650426,-501.01367125,0.00035616,14]
[337627044,1725900650435,-23296.63,0.00035616,14]
[337627045,1725900650444,-500.0,0.00035616,14]
[337627046,1725900650454,-500.0,0.00035616,14]
[337627047,1725900650463,-695.88,0.00035616,14]
[337627048,1725900650472,-504.75987686,0.00035616,14]
[337627049,1725900650481,-500.0,0.00035616,14]
[337627050,1725900650490,-333.68941006,0.00035616,14]
[337627051,1725900650499,-1711.78,0.00035616,14]
[337627052,1725900650508,-500.0,0.00035616,14]
[337627053,1725900650516,-500.0,0.00035616,14]
[337627054,1725900650525,-837.74,0.00035616,14]
[337627055,1725900650534,-500.0,0.00035616,14]
[337627056,1725900650544,-716.53,0.00035616,7]
[337627057,1725900650553,-500.0,0.00035616,14]
[337627058,1725900650562,-2396.84,0.00035616,14]
[337627059,1725900650571,-500.0,0.00035616,14]
[337627060,1725900650580,-363.637776,0.00035616,14]
[337627061,1725900650589,-363.637776,0.00035616,14]
[337627062,1725900650599,-363.637776,0.00035616,14]
[337627063,1725900650608,-363.637776,0.00035616,14]
[337627064,1725900650617,-597.46422064,0.00035616,14]
[337627065,1725900650627,-513.06,0.00035616,14]
[337627066,1725900650636,-500.0,0.00035616,14]
[337627067,1725900650646,-500.0,0.00035616,14]
[337627068,1725900650656,-500.0,0.00035616,14]
[337627069,1725900650665,-151.0,0.00035616,14]
[337627070,1725900650680,-1032.1,0.00035616,14]
[337627071,1725900650689,-286.19943,0.00035616,14]
[337627072,1725900650698,-386.93385966,0.00035616,14]
[337627073,1725900650708,-1496.29,0.00035616,14]
[337627074,1725900650717,-890.7,0.00035616,14]
[337627075,1725900650727,-786.94,0.00035616,14]
[337627076,1725900650736,-500.0,0.00035616,14]
[337627077,1725900650747,-363.637776,0.00035616,14]
[337627078,1725900650756,-500.0,0.00035616,14]
[337627079,1725900650765,-363.637776,0.00035616,14]
[337627080,1725900650776,-363.637776,0.00035616,14]
[337627081,1725900650785,-363.637776,0.00035616,14]
[337627082,1725900650798,-1533.31,0.00035616,14]
[337627083,1725900650807,-1158.56,0.00035616,14]
[337627084,1725900650817,-1067.14,0.00035616,14]
[337627085,1725900650826,-1615.92,0.00035616,14]
[337627086,1725900650836,-500.0,0.00035616,14]
[337627087,1725900650845,-5289.18,0.00035616,14]
[337627088,1725900650854,-500.0,0.00035616,14]
[337627089,1725900650863,-673.51,0.00035616,14]
[337627090,1725900650872,-500.0,0.00035616,14]
[337627091,1725900650882,-500.0,0.00035616,14]
[337627092,1725900650891,-2481.45,0.00035616,14]
[337627093,1725900650899,-500.0,0.00035616,14]
[337627094,1725900650908,-500.0,0.00035616,14]
[337627095,1725900650917,-500.0,0.00035616,14]
[337627096,1725900650929,-500.0,0.00035616,14]
[337627097,1725900650939,-500.0,0.00035616,14]
[337627098,1725900650948,-625.01165026,0.00035616,14]
[337627099,1725900650958,-500.0,0.00035616,14]
[337627100,1725900650968,-500.0,0.00035616,14]
[337627101,1725900650977,-500.0,0.00035616,14]
[337627102,1725900650986,-734.26,0.00035616,14]
[337627103,1725900650996,-500.0,0.00035616,14]
[337627104,1725900651005,-5032.03,0.00035616,14]
[337627105,1725900651014,-1584.91,0.00035616,14]
[337627106,1725900651023,-500.0,0.00035616,14]
[337627107,1725900651033,-500.0,0.00035616,14]
[337627108,1725900651043,-500.0,0.00035616,14]
[337627109,1725900651052,-1124.27,0.00035616,14]
[337627110,1725900651061,-269.12136679,0.00035616,14]
[337627111,1725900651590,-500.0,0.000319,5]
[337627112,1725900651599,-434.0679777,0.0003327,5]
[337627113,1725900651609,-150.307,0.00034952,2]
[337627114,1725900651617,-230.87863321,0.00035616,14]
[337627115,1725900651628,-465.744916,0.00035616,14]
[337627116,1725900651637,-2634.0,0.00035616,14]
[337627117,1725900651647,-465.744916,0.00035616,14]
[337627118,1725900651657,-500.0,0.00035616,14]
[337627119,1725900651667,-465.744916,0.00035616,14]
[337627120,1725900651679,-500.0,0.00035616,14]
[337627121,1725900651689,-465.744916,0.00035616,14]
[337627122,1725900651698,-1145.13,0.00035616,14]
[337627123,1725900651707,-500.0,0.00035616,14]
[337627124,1725900651717,-500.0,0.00035616,14]
[337627125,1725900651726,-465.744916,0.00035616,14]
[337627126,1725900651735,-465.744916,0.00035616,14]
[337627127,1725900651745,-465.744916,0.00035616,14]
[337627128,1725900651755,-465.744916,0.00035616,14]
[337627129,1725900651764,-2068.56,0.00035616,14]
[337627130,1725900651773,-500.0,0.00035616,14]
[337627131,1725900651782,-408.2097917,0.00035616,14]
[337627132,1725900651792,-774.12,0.00035616,14]
[337627133,1725900651801,-3470.01,0.00035616,14]
[337627134,1725900651811,-1078.02,0.00035616,14]
[337627135,1725900651820,-543.05,0.00035616,14]
[337627136,1725900651830,-4284.04,0.00035616,14]
[337627137,1725900651839,-692.06,0.00035616,14]
[337627138,1725900651849,-500.87711517,0.00035616,14]
[337627139,1725900651859,-500.0,0.00035616,14]
[337627140,1725900651868,-500.0,0.00035616,14]
[337627141,1725900651877,-501.08798804,0.00035616,14]
[337627142,1725900651886,-500.0,0.00035616,14]
[337627143,1725900651895,-534.12255075,0.00035616,14]
[337627144,1725900652388,-501.66479479,0.000319,5]
[337627145,1725900652398,-151.0,0.00034539,14]
[337627146,1725900652409,-151.0,0.000349,14]
[337627147,1725900652422,-173.02744925,0.00035616,14]
[337627148,1725900652432,-999.0,0.00035616,14]
[337627149,1725900652442,-500.0,0.00035616,14]
[337627150,1725900652451,-500.0,0.00035616,14]
[337627151,1725900652461,-541.02,0.00035616,14]
[337627152,1725900652471,-500.0,0.00035616,14]
[337627153,1725900652480,-500.0,0.00035616,14]
[337627154,1725900652490,-744.09,0.00035616,14]
[337627155,1725900652499,-276.1349439,0.00035616,14]
[337627156,1725900652513,-223.8650561,0.00035616,14]
[337627157,1725900652522,-1848.23,0.00035616,14]
[337627158,1725900652532,-8368.88,0.00035616,14]
[337627159,1725900652541,-906.69,0.00035616,14]
[337627160,1725900652551,-500.0,0.00035616,14]
[337627161,1725900652560,-1818.59,0.00035616,14]
[337627162,1725900652570,-7668.42,0.00035616,14]
[337627163,1725900652580,-2007.96,0.00035616,14]
[337627164,1725900652589,-126.28713252,0.00035616,14]
[337627170,1725901559999,257.81591714,0.00025,2]
[337627173,1725901774146,-961.412687,0.00026953,2]
[337627174,1725901774167,-294.3067734,0.00027177,2]
[337627175,1725901774189,-250.0,0.0002781,2]
[337627176,1725901774214,-250.0,0.00027887,2]
[337627177,1725901774238,-300.0,0.0002794,2]
[337627178,1725901774259,-300.0,0.0002794,2]
[337627179,1725901774279,-193.0,0.0002794,15]
[337627180,1725901774302,-11068.30994264,0.00027941,2]
[337627224,1725901832021,-166.66666667,0.00027863,2]
[337627226,1725901832031,-300.0,0.0002794,2]
[337627228,1725901832042,-7456.64029446,0.00027941,2]
[337627230,1725901832053,-3474.82399486,0.00027941,2]
[337627232,1725901832068,-2900.22576804,0.00027941,2]
[337627234,1725901832077,-250.0,0.00027963,2]
[337627236,1725901832086,-250.0,0.00028039,2]
[337627240,1725901832096,-250.0,0.00028115,2]
[337627242,1725901832105,-250.0,0.00028192,2]
[337627244,1725901832114,-250.0,0.00028268,2]
[337627246,1725901832124,-250.0,0.00028344,2]
[337627248,1725901832133,-250.0,0.00028421,2]
[337627250,1725901832143,-250.0,0.00028497,2]
[337627252,1725901832152,-250.0,0.00028573,2]
[337627254,1725901832162,-250.0,0.00028649,2]
[337627256,1725901832171,-250.0,0.00028726,2]
[337627258,1725901832181,-250.0,0.00028802,2]
[337627260,1725901832190,-250.0,0.00028878,2]
[337627262,1725901832200,-250.0,0.00028954,2]
[337627264,1725901832209,-250.0,0.00029031,2]
[337627266,1725901832219,-250.0,0.00029107,2]
[337627267,1725901832229,-250.0,0.00029183,2]
[337627269,1725901832238,-250.0,0.0002926,2]
[337627271,1725901832247,-5935.2630719,0.00029334,2]
[337627274,1725901832256,-151.0,0.0003,120]
[337627276,1725901832265,-151.0,0.0003,120]
[337627277,1725901832275,-200.0,0.0003,120]
[337627280,1725901832284,-1500.0,0.0003,2]
[337627282,1725901832294,-282.0,0.0003,2]
[337627284,1725901832303,-1500.0,0.00030167,2]
[337627286,1725901832315,-1500.0,0.00030333,2]
[337627288,1725901832324,-1500.0,0.000305,2]
[337627290,1725901832333,-1500.0,0.00030667,2]
[337627292,1725901832343,-420.0,0.00030734,2]
[337627293,1725901832352,-63.13145691,0.00030833,2]
[337627654,1725901838011,-1436.86854309,0.00030833,2]
[337627655,1725901838021,-1500.0,0.00031,2]
[337627656,1725901838031,-1500.0,0.00031167,2]
[337627657,1725901838040,-202.68861071,0.00031212,2]
[337627658,1725901838051,-500.0,0.00031294,2]
[337627659,1725901838061,-500.0,0.00031294,2]
[337627660,1725901838074,-500.0,0.00031294,2]
[337627661,1725901838084,-500.0,0.00031294,2]
[337627662,1725901838093,-500.0,0.00031294,2]
[337627663,1725901838103,-500.0,0.00031294,2]
[337627664,1725901838113,-500.0,0.00031294,2]
[337627665,1725901838122,-500.0,0.00031294,2]
[337627666,1725901838131,-500.0,0.00031294,2]
[337627667,1725901838141,-500.0,0.00031294,2]
[337627668,1725901838151,-500.0,0.00031294,2]
[337627669,1725901838161,-500.0,0.00031294,2]
[337627670,1725901838171,-500.0,0.00031294,2]
[337627671,1725901838180,-500.0,0.00031294,2]
[337627672,1725901838190,-500.0,0.00031294,2]
[337627673,1725901838200,-500.0,0.00031294,2]
[337627674,1725901838210,-500.0,0.00031294,2]
[337627675,1725901838219,-500.0,0.00031294,2]
[337627676,1725901838229,-399.36725538,0.00031294,2]
[337627677,1725901838238,-500.0,0.00031294,2]
[337627678,1725901838248,-500.0,0.00031294,2]
[337627679,1725901838257,-500.0,0.00031294,2]
[337627680,1725901838267,-500.0,0.00031294,2]
[337627681,1725901838276,-500.0,0.00031294,2]
[337627682,1725901838286,-500.0,0.00031294,2]
[337627683,1725901838296,-500.0,0.00031294,2]
[337627684,1725901838306,-500.0,0.00031294,2]
[337627685,1725901838317,-500.0,0.00031294,2]
[337627686,1725901838327,-485.05412962,0.00031294,2]
[337627687,1725901838337,-500.0,0.00031294,2]
[337627688,1725901838346,-500.0,0.00031294,2]
[337627689,1725901838356,-500.0,0.00031294,2]
[337627690,1725901838365,-500.0,0.00031294,2]
[337627691,1725901838375,-500.0,0.00031294,2]
[337627692,1725901838385,-500.0,0.00031294,2]
[337627693,1725901838394,-500.0,0.00031294,2]
[337627694,1725901838404,-500.0,0.00031294,2]
[337627695,1725901838413,-500.0,0.00031294,2]
[337627696,1725901838423,-500.0,0.00031294,2]
[337627697,1725901838433,-500.0,0.00031294,2]
[337627698,1725901838442,-500.0,0.00031294,2]
[337627699,1725901838452,-500.0,0.00031294,2]
[337627700,1725901838462,-500.0,0.00031294,2]
[337627701,1725901838471,-500.0,0.00031294,2]
[337627702,1725901838650,-500.0,0.00031294,2]
[337627703,1725901838667,-500.0,0.00031294,2]
[337627704,1725901838677,-500.0,0.00031294,2]
[337627705,1725901838687,-34.71510692,0.00031294,2]
[337627706,1725901838699,-465.28489308,0.00031294,2]
[337627707,1725901838709,-500.0,0.00031294,2]
[337627708,1725901838718,-500.0,0.00031294,2]
[337627709,1725901838730,-500.0,0.00031294,2]
[337627710,1725901838741,-500.0,0.00031294,2]
[337627711,1725901838752,-500.0,0.00031294,2]
[337627712,1725901838762,-500.0,0.00031294,2]
[337627713,1725901838772,-500.0,0.00031294,2]
[337627714,1725901838782,-500.0,0.00031294,2]
[337627715,1725901838793,-500.0,0.00031294,2]
[337627716,1725901838803,-140.73027947,0.00031294,2]
[337627717,1725901838817,-359.26972053,0.00031294,2]
[337627718,1725901838826,-500.0,0.00031294,2]
[337627719,1725901838836,-500.0,0.00031294,2]
[337627720,1725901838846,-500.0,0.00031294,2]
[337627721,1725901838855,-310.62511974,0.00031294,2]
[337627722,1725901838867,-189.37488026,0.00031294,2]
[337627723,1725901838877,-500.0,0.00031294,2]
[337627724,1725901838887,-500.0,0.00031294,2]
[337627725,1725901838897,-500.0,0.00031294,2]
[337627726,1725901838907,-500.0,0.00031294,2]
[337627727,1725901838917,-500.0,0.00031294,2]
[337627728,1725901838928,-177.49219273,0.00031295,2]
[337627729,1725901838939,-607.65908369,0.00031295,2]
[337627730,1725901838949,-500.0,0.00031295,2]
[337627731,1725901838959,-156974.228234,0.00031296,4]
[337627732,1725901838969,-6365.36311541,0.00031296,4]
[337627733,1725901838979,-313948.456467,0.00031298,4]
[337627734,1725901838990,-12730.7262308,0.00031298,4]
[337627735,1725901838999,-500.0,0.000313,5]
[337627736,1725901839009,-31826.8155771,0.00031302,4]
[337627737,1725901839020,-1500.0,0.00031333,2]
[337627739,1725901839029,-2134.80730791,0.000314,14]
[337627835,1725901839992,-348.59,0.00031286,3]
[337627837,1725901840003,-2478.46411551,0.000314,14]
[337627843,1725901840050,-15044.00857658,0.000314,14]
[337627845,1725901840062,-1267.29,0.000314,14]
[337627847,1725901840073,-334.73,0.000314,14]
[337627849,1725901840084,-1222.78,0.000314,7]
[337627851,1725901840094,-217.0,0.000314,14]
[337627853,1725901840103,-500.0,0.000314,5]
[337627855,1725901840113,-34550.42369425,0.0003149,120]
[337627857,1725901840123,-1500.0,0.000315,2]
[337627859,1725901840132,-12730.7262308,0.0003158,4]
[337627861,1725901840142,-1500.0,0.00031667,2]
[337627863,1725901840151,-1500.0,0.00031833,2]
[337627866,1725901840162,-1500.0,0.00032,2]
[337627868,1725901840172,-310.8157173,0.0003204,5]
[337627870,1725901840182,-1500.0,0.00032167,2]
[337627872,1725901840192,-202.68861069,0.00032208,2]
[337627874,1725901840201,-1500.0,0.00032333,2]
[337627876,1725901840210,-537.41654249,0.00032467,5]
[337627878,1725901840221,-500.0,0.00032467,5]
[337627880,1725901840230,-1500.0,0.000325,2]
[337627882,1725901840240,-1500.0,0.00032667,2]
[337627884,1725901840250,-1000.0,0.0003267,5]
[337627886,1725901840260,-1000.0,0.0003277,5]
[337627888,1725901840269,-1500.0,0.00032833,2]
[337627890,1725901840279,-500.0,0.00032877,2]
[337627892,1725901840289,-217.0,0.000329,14]
[337627894,1725901840299,-1222.78,0.00033,30]
[337627896,1725901840308,-1500.0,0.00033,2]
[337627898,1725901840319,-282.0,0.00033,2]
[337627900,1725901840328,-1500.0,0.00033167,2]
[337627901,1725901840337,-6365.36311541,0.0003319,5]
[337627904,1725901840347,-19657.28,0.000332,14]
[337627906,1725901840359,-1267.29,0.000332,14]
[337627908,1725901840368,-334.73,0.000332,14]
[337627909,1725901840377,-202.68861069,0.00033203,2]
[337627911,1725901840387,-1500.0,0.00033333,2]
[337627913,1725901840397,-1500.0,0.000335,2]
[337627915,1725901840407,-1500.0,0.00033667,2]
[337627918,1725901840417,-248.0,0.00033808,2]
[337627920,1725901840427,-613.15501594,0.00033833,2]
[337627922,1725901840437,-202.68861069,0.00034199,2]
[337627924,1725901840447,-1000.0,0.00034246,60]
[337627926,1725901840456,-3971.1615137,0.00034827,2]
[337627928,1725901840465,-412.84,0.00035,2]
[337627930,1725901840475,-5562.17813465,0.00035,10]
[337627932,1725901840485,-6369.485,0.00035,6]
[337627934,1725901840495,-3971.1615137,0.00035093,2]
[337627936,1725901840505,-1500.0,0.00035175,5]
[337627938,1725901840515,-202.68861069,0.00035195,2]
[337627940,1725901840526,-150.112233,0.000352,6]
[337627942,1725901840537,-1000.0,0.00035205,60]
[337627944,1725901840547,-1500.0,0.00035275,5]
[337627946,1725901840557,-3971.1615139,0.00035477,2]
[337627948,1725901840568,-217.0,0.000355,14]
[337627950,1725901840578,-25461.4524616,0.00035506,5]
[337627952,1725901840591,-13166.32114396,0.00035516,2]
[337628206,1725901843037,-56413.61371988,0.00035516,2]
[337628219,1725901843155,-59.20872469,0.00035516,2]
[337629565,1725902925324,508.5655797,0.00023,2]
[337629566,1725902925351,51260.26142741,0.00020377,2]
[337629567,1725902926396,998.1329396,0.0002,2]
[337629568,1725902926425,201.89993939,0.0002,2]
[337629569,1725902926999,113583.93913109,0.0001999,2]
[337629570,1725902927317,155.53509166,0.0002,2]
[337629571,1725902927667,154.87526698,0.0002,2]
[337629572,1725902928309,12088.69578342,0.000129,2]
[337629573,1725902928461,164.26157189,0.00025,2]
[337629574,1725902928564,227.37566079,0.00025,2]
[337629575,1725902958140,-1217.773872,0.0002509,2]
[337629576,1725902966158,-2374.07332572,0.0002509,2]
[337629657,1725903033119,-2808.37896196,0.0002509,2]
[337629658,1725903033134,-938.22642531,0.0002509,2]
[337629672,1725903038326,-656.32792901,0.0002509,2]
[337629674,1725903038337,-1330.73218578,0.00025855,2]
[337629675,1725903038346,-176.4791115,0.00025954,2]
[337629676,1725903038357,-300.0,0.00026999,2]
[337629677,1725903038367,-2739.25892905,0.00027,2]
[337629678,1725903038376,-43948.37133805,0.000275,2]
[337629680,1725903038387,-167.6357544,0.00029618,2]
[337629681,1725903038397,-248.0,0.00029699,2]
[337629682,1725903038407,-537.41654249,0.00029773,5]
[337629683,1725903038417,-500.0,0.00029773,5]
[337629684,1725903038427,-500.0,0.00029773,5]
[337629685,1725903038438,-500.0,0.00029788,2]
[337629686,1725903038448,-322.15191726,0.00029788,2]
[337629687,1725903038459,-500.0,0.00029788,2]
[337629688,1725903038469,-500.0,0.00029788,2]
[337629689,1725903038480,-500.0,0.00029788,2]
[337629690,1725903038490,-500.0,0.00029788,2]
[337629691,1725903038499,-500.0,0.00029788,2]
[337629692,1725903038509,-500.0,0.00029788,2]
[337629693,1725903038520,-500.0,0.00029788,2]
[337629694,1725903038530,-500.0,0.00029788,2]
[337629695,1725903038541,-500.0,0.00029788,2]
[337629696,1725903038553,-500.0,0.00029788,2]
[337629697,1725903038564,-500.0,0.00029788,2]
[337629698,1725903038574,-500.0,0.00029788,2]
[337629699,1725903038586,-500.0,0.00029788,2]
[337629700,1725903038598,-500.0,0.00029788,2]
[337629701,1725903038608,-500.0,0.00029788,2]
[337629702,1725903038619,-500.0,0.00029788,2]
[337629703,1725903038629,-500.0,0.00029788,2]
[337629704,1725903038639,-500.0,0.00029788,2]
[337629705,1725903038650,-500.0,0.00029788,2]
[337629706,1725903038661,-500.0,0.00029788,2]
[337629707,1725903038671,-500.0,0.00029788,2]
[337629708,1725903038680,-500.0,0.00029788,2]
[337629709,1725903038691,-500.0,0.00029788,2]
[337629710,1725903038701,-500.0,0.00029788,2]
[337629711,1725903038711,-238.01802891,0.00029788,2]
[337629712,1725903038724,-261.98197109,0.00029788,2]
[337629713,1725903038733,-500.0,0.00029788,2]
[337629714,1725903038744,-500.0,0.00029788,2]
[337629715,1725903038755,-500.0,0.00029788,2]
[337629716,1725903038766,-500.0,0.00029788,2]
[337629717,1725903038776,-500.0,0.00029788,2]
[337629718,1725903038786,-500.0,0.00029788,2]
[337629719,1725903038799,-500.0,0.00029788,2]
[337629720,1725903038808,-500.0,0.00029788,2]
[337629721,1725903038823,-500.0,0.00029788,2]
[337629722,1725903038833,-500.0,0.00029788,2]
[337629723,1725903038843,-500.0,0.00029788,2]
[337629724,1725903038852,-500.0,0.00029788,2]
[337629725,1725903038863,-500.0,0.00029789,2]
[337629726,1725903038873,-275.36135859,0.00029789,2]
[337629727,1725903038884,-93639.16681938,0.0002979,4]
[337629840,1725903041226,-227901.6842064,0.0002979,4]
[337638321,1725903248585,1504.57,0.00025,2]
[337638522,1725904233620,-166.666666,0.00025807,2]
[337638525,1725904233631,-167.164141,0.00025928,2]
[337638527,1725904233641,-2960.616193,0.0002608,2]
[337638923,1725904238348,-21939.383807,0.0002608,2]
[337638925,1725904238359,-721.306803,0.00026117,2]
[337638926,1725904238369,-234.5489961,0.00026246,2]
[337638927,1725904238379,-250.0,0.00026725,2]
[337638928,1725904238389,-250.0,0.00026798,2]
[337638929,1725904238399,-250.0,0.00026871,2]
[337638930,1725904238409,-250.0,0.00026944,2]
[337638931,1725904238419,-166.666666,0.00026979,2]
[337638932,1725904238429,-250.0,0.00027018,2]
[337638933,1725904238439,-300.0,0.00027025,2]
[337638934,1725904238449,-300.0,0.00027025,2]
[337638935,1725904238459,-5353.30528834,0.00027026,2]
[337638936,1725904238468,-250.0,0.00027091,2]
[337638937,1725904238479,-250.0,0.00027164,2]
[337638938,1725904238488,-250.0,0.00027238,2]
[337638939,1725904238498,-5353.30528834,0.0002731,2]
[337638940,1725904238507,-250.0,0.00027311,2]
[337638941,1725904238517,-465.62775333,0.00027339,2]
[337638942,1725904238526,-250.0,0.00027384,2]
[337638943,1725904238536,-5353.30528834,0.00027421,2]
[337638944,1725904238546,-250.0,0.00027457,2]
[337638945,1725904238556,-338.13317802,0.00027499,7]
[337638946,1725904238566,-250.0,0.00027531,2]
[337638947,1725904238576,-250.0,0.00027604,2]
[337638948,1725904238587,-3277.92088329,0.00027645,2]
[337638949,1725904238597,-250.0,0.00027677,2]
[337638950,1725904238607,-250.0,0.00027751,2]
[337638951,1725904238618,-3316.90388524,0.00027816,2]
[337638952,1725904238630,-509.62125019,0.00027816,2]
[337638953,1725904238643,-1526.78015291,0.00027816,2]
[337638954,1725904238653,-250.0,0.00027824,2]
[337638955,1725904238663,-250.0,0.00027897,2]
[337638956,1725904238673,-250.0,0.00027971,2]
[337638957,1725904238682,-5353.30528834,0.00027986,2]
[337638958,1725904238692,-250.0,0.00028044,2]
[337638959,1725904238701,-308.5388931,0.00028057,2]
[337638960,1725904238711,-250.0,0.00028117,2]
[337638961,1725904238721,-166.666666,0.00028152,2]
[337638962,1725904238732,-800.0,0.00028328,15]
[337638963,1725904238741,-5353.30528834,0.00028445,2]
[337638964,1725904238751,-465.03138767,0.00028706,2]
[337638965,1725904238760,-5353.30528834,0.00028736,2]
[337638966,1725904238770,-5353.30528834,0.00028978,2]
[337638967,1725904238780,-3277.92088323,0.00029161,2]
[337638968,1725904238789,-150.0,0.00029189,2]
[337638969,1725904238799,-420.0,0.00029216,2]
[337638970,1725904238808,-5353.30528834,0.00029242,2]
[337638971,1725904238817,-859.32,0.00029273,3]
[337638972,1725904238831,-429.66,0.00029273,3]
[337638973,1725904238841,-214.83,0.00029273,3]
[337638974,1725904238851,-644.51,0.00029273,3]
[337638975,1725904238861,-342.81,0.00029273,3]
[337638976,1725904238871,-285.67,0.00029273,3]
[337638977,1725904238880,-500.812646,0.00029281,2]
[337638978,1725904238890,-500.0,0.00029281,2]
[337638979,1725904238900,-371.70346534,0.00029281,2]
[337638980,1725904238910,-500.0,0.00029281,2]
[337638981,1725904238920,-796.27633121,0.00029281,2]
[337638982,1725904238930,-543.74814108,0.00029281,2]
[337638983,1725904238940,-500.0,0.00029281,2]
[337638984,1725904238953,-796.27633121,0.00029281,2]
[337638985,1725904238963,-457.72527562,0.00029281,2]
[337638986,1725904238972,-796.27633121,0.00029281,2]
[337638987,1725904238983,-796.27633121,0.00029281,2]
[337638988,1725904238993,-796.27633121,0.00029281,2]
[337638989,1725904239002,-796.27633121,0.00029281,2]
[337638990,1725904239012,-796.27633121,0.00029281,2]
[337638991,1725904239025,-796.27633121,0.00029281,2]
[337638992,1725904239035,-796.27633121,0.00029281,2]
[337638993,1725904239044,-796.27633121,0.00029281,2]
[337638994,1725904239054,-796.27633121,0.00029281,2]
[337638995,1725904239064,-796.27633121,0.00029281,2]
[337638996,1725904239073,-796.27633121,0.00029281,2]
[337638997,1725904239082,-796.27633121,0.00029281,2]
[337638998,1725904239092,-796.27633121,0.00029281,2]
[337638999,1725904239101,-796.27633121,0.00029281,2]
[337639000,1725904239111,-796.27633121,0.00029281,2]
[337639001,1725904239121,-796.27633121,0.00029281,2]
[337639002,1725904239131,-796.27633121,0.00029281,2]
[337639003,1725904239142,-796.27633121,0.00029281,2]
[337639004,1725904239152,-796.27633121,0.00029281,2]
[337639005,1725904239162,-796.27633121,0.00029281,2]
[337639006,1725904239172,-796.27633121,0.00029281,2]
[337639007,1725904239182,-796.27633121,0.00029281,2]
[337639008,1725904239192,-796.27633121,0.00029281,2]
[337639009,1725904239382,-796.27633121,0.00029281,2]
[337639010,1725904239393,-796.27633121,0.00029281,2]
[337639011,1725904239403,-796.27633121,0.00029281,2]
[337639012,1725904239413,-796.27633121,0.00029281,2]
[337639013,1725904239424,-796.27633121,0.00029281,2]
[337639014,1725904239434,-796.27633121,0.00029281,2]
[337639015,1725904239445,-796.27633121,0.00029281,2]
[337639016,1725904239455,-796.27633121,0.00029281,2]
[337639017,1725904239464,-796.27633121,0.00029281,2]
[337639018,1725904239474,-796.27633121,0.00029281,2]
[337639019,1725904239485,-796.27633121,0.00029281,2]
[337639020,1725904239495,-796.27633121,0.00029281,2]